[Event "FIDE Grand Swiss 2023"]
[Site "Villa Marina, Douglas, Isle of Man"]
[Date "2023.10.25"]
[Round "1.29"]
[White "Huschenbeth, Niclas"]
[Black "Navara, David"]
[Result "1-0"]
[WhiteElo "2605"]
[BlackElo "2689"]
[EventDate "2023.10.25"]
[ECO "C67"]
[PlyCount "135"]
[BlackFideId "309095"]
[TimeControl "40/100 + 20/50 + 15 + 30s/move"]
[WhiteFideId "24604747"]

1.e4 {[%clk 01:40:56] [%emt 00:00:02]} 1...e5 {[%clk 01:40:57] [%emt 00:00:04]} 
2.Nf3 {[%clk 01:41:21] [%emt 00:00:05]} 2...Nc6 {[%clk 01:41:21] [%emt
00:00:06]} 3.Bb5 {[%clk 01:41:38] [%emt 00:00:13]} 3...Nf6 {[%clk 01:41:46]
[%emt 00:00:05]} 4.O-O {[%clk 01:41:51] [%emt 00:00:17]} 4...Nxe4 {[%clk
01:42:12] [%emt 00:00:04]} 5.Re1 {[%clk 01:42:09] [%emt 00:00:12]} 5...Nd6 
{[%clk 01:42:36] [%emt 00:00:06]} 6.Nxe5 {[%clk 01:42:23] [%emt 00:00:16]} 
6...Be7 {[%clk 01:43:00] [%emt 00:00:07]} 7.Bf1 {[%clk 01:42:39] [%emt
00:00:13]} 7...Nxe5 {[%clk 01:43:22] [%emt 00:00:08]} 8.Rxe5 {[%clk 01:43:03]
[%emt 00:00:06]} 8...O-O {[%clk 01:43:42] [%emt 00:00:09]} 9.d4 {[%clk 01:43:06]
[%emt 00:00:28]} 9...Bf6 {[%clk 01:44:07] [%emt 00:00:05]} 10.Re1 {[%clk
01:43:02] [%emt 00:00:34]} 10...Re8 {[%clk 01:44:28] [%emt 00:00:09]} 11.Bf4 
{[%clk 01:42:25] [%emt 00:01:07]} 11...Rxe1 {[%clk 01:43:55] [%emt 00:01:03]} 
12.Qxe1 {[%clk 01:42:50] [%emt 00:00:05]} 12...Ne8 {[%clk 01:43:46] [%emt
00:00:39]} 13.Nc3 {[%clk 01:43:09] [%emt 00:00:11]} 13...Bxd4 {[%clk 01:43:32]
[%emt 00:00:44]} 14.Nd5 {[%clk 01:43:18] [%emt 00:00:21]} 14...d6 {[%clk
01:42:43] [%emt 00:01:19]} 15.Bg5 {[%clk 01:43:33] [%emt 00:00:15]} 15...f6 
{[%clk 01:42:18] [%emt 00:00:55]} 16.Bh4 {[%clk 01:43:56] [%emt 00:00:06]} 
16...Bxb2 {[%clk 01:31:00] [%emt 00:11:49]} 17.Rb1 {[%clk 01:41:47] [%emt
00:02:40]} 17...Be5 {[%clk 01:28:56] [%emt 00:02:33]} 18.f4 {[%clk 01:42:03]
[%emt 00:00:14]} 18...c6 {[%clk 01:14:18] [%emt 00:15:08]} 19.fxe5 {[%clk
01:42:24] [%emt 00:00:08]} 19...cxd5 {[%clk 01:14:44] [%emt 00:00:05]} 20.exf6 
{[%clk 01:42:36] [%emt 00:00:18]} 20...Nxf6 {[%clk 01:15:07] [%emt 00:00:07]} 
21.Bd3 {[%clk 01:42:26] [%emt 00:00:41]} 21...Bd7 {[%clk 01:11:34] [%emt
00:04:02]} 22.Qg3 {[%clk 01:42:34] [%emt 00:00:21]} 22...Bc6 {[%clk 01:01:47]
[%emt 00:10:18]} 23.Bg5 {[%clk 01:42:56] [%emt 00:00:08]} 23...a6 {[%clk
00:40:45] [%emt 00:21:32]} 24.Rf1 {[%clk 01:39:23] [%emt 00:04:02]} 24...Qb6+ 
{[%clk 00:37:26] [%emt 00:03:50]} 25.Be3 {[%clk 01:39:38] [%emt 00:00:15]} 
25...Qb2 {[%clk 00:36:33] [%emt 00:01:22]} 26.Qh4 {[%clk 01:39:42] [%emt
00:00:26]} 26...Ne4 {[%clk 00:35:15] [%emt 00:01:49]} 27.Qe7 {[%clk 01:40:03]
[%emt 00:00:09]} 27...h6 {[%clk 00:29:12] [%emt 00:06:33]} 28.Bxh6 {[%clk
01:37:05] [%emt 00:03:28]} 28...gxh6 {[%clk 00:23:20] [%emt 00:06:22]} 29.Qe6+ 
{[%clk 01:09:55] [%emt 00:27:40]} 29...Kh8 {[%clk 00:23:33] [%emt 00:00:17]} 
30.Qxh6+ {[%clk 01:10:20] [%emt 00:00:05]} 30...Kg8 {[%clk 00:23:55] [%emt
00:00:08]} 31.Qg6+ {[%clk 01:08:35] [%emt 00:02:15]} 31...Qg7 {[%clk 00:10:56]
[%emt 00:13:28]} 32.Bxe4 {[%clk 00:57:43] [%emt 00:11:22]} 32...Qxg6 {[%clk
00:11:16] [%emt 00:00:11]} 33.Bxg6 {[%clk 00:58:05] [%emt 00:00:08]} 33...Bb5 
{[%clk 00:11:35] [%emt 00:00:11]} 34.Rf6 {[%clk 00:45:27] [%emt 00:13:08]} 
34...Rf8 {[%clk 00:01:29] [%emt 00:10:36]} 35.Rxf8+ {[%clk 00:40:57] [%emt
00:05:00]} 35...Kxf8 {[%clk 00:01:55] [%emt 00:00:04]} 36.c3 {[%clk 00:39:34]
[%emt 00:01:53]} 36...Bc4 {[%clk 00:01:32] [%emt 00:00:52]} 37.a3 {[%clk
00:33:13] [%emt 00:06:52]} 37...Kg7 {[%clk 00:01:42] [%emt 00:00:20]} 38.Bc2 
{[%clk 00:31:32] [%emt 00:02:12]} 38...b5 {[%clk 00:01:50] [%emt 00:00:22]} 
39.Kf2 {[%clk 00:31:42] [%emt 00:00:19]} 39...d4 {[%clk 00:02:13] [%emt
00:00:07]} 40.cxd4 {[%clk 00:32:06] [%emt 00:00:05]} 40...a5 {[%clk 00:02:34]
[%emt 00:00:10]} 41.Ke3 {[%clk 00:28:48] [%emt 00:03:47]} 41...Kh6 {[%clk
00:48:08] [%emt 00:04:56]} 42.g3 {[%clk 00:54:55] [%emt 00:24:24]} 42...Be6 
{[%clk 00:40:08] [%emt 00:08:31]} 43.Bd1 {[%clk 00:49:37] [%emt 00:05:47]} 
43...Bh3 {[%clk 00:32:29] [%emt 00:08:09]} 44.Be2 {[%clk 00:48:05] [%emt
00:02:01]} 44...b4 {[%clk 00:32:40] [%emt 00:00:20]} 45.axb4 {[%clk 00:48:30]
[%emt 00:00:06]} 45...axb4 {[%clk 00:33:03] [%emt 00:00:06]} 46.Kd3 {[%clk
00:40:33] [%emt 00:08:26]} 46...Bc8 {[%clk 00:33:08] [%emt 00:00:26]} 47.Kc2 
{[%clk 00:29:02] [%emt 00:12:02]} 47...Be6 {[%clk 00:33:24] [%emt 00:00:13]} 
48.Bf3 {[%clk 00:29:15] [%emt 00:00:17]} 48...Bc4 {[%clk 00:26:22] [%emt
00:07:32]} 49.h4 {[%clk 00:28:32] [%emt 00:01:13]} 49...Kg6 {[%clk 00:24:48]
[%emt 00:02:04]} 50.g4 {[%clk 00:28:52] [%emt 00:00:10]} 50...Kh6 {[%clk
00:24:26] [%emt 00:00:52]} 51.Kb2 {[%clk 00:28:51] [%emt 00:00:31]} 51...Kg7 
{[%clk 00:10:42] [%emt 00:14:14]} 52.Be4 {[%clk 00:27:36] [%emt 00:01:44]} 
52...Kh6 {[%clk 00:10:56] [%emt 00:00:17]} 53.d5 {[%clk 00:26:24] [%emt
00:01:42]} 53...Be2 {[%clk 00:06:26] [%emt 00:05:00]} 54.g5+ {[%clk 00:07:03]
[%emt 00:19:51]} 54...Kh5 {[%clk 00:06:45] [%emt 00:00:11]} 55.g6 {[%clk
00:06:51] [%emt 00:00:42]} 55...Kh6 {[%clk 00:07:10] [%emt 00:00:05]} 56.Kb3 
{[%clk 00:07:18] [%emt 00:00:04]} 56...Kg7 {[%clk 00:07:10] [%emt 00:00:29]} 
57.Kxb4 {[%clk 00:07:21] [%emt 00:00:27]} 57...Kf6 {[%clk 00:07:24] [%emt
00:00:16]} 58.Ka5 {[%clk 00:02:19] [%emt 00:05:32]} 58...Bh5 {[%clk 00:07:38]
[%emt 00:00:15]} 59.Kb6 {[%clk 00:02:43] [%emt 00:00:06]} 59...Ke5 {[%clk
00:08:00] [%emt 00:00:08]} 60.g7 {[%clk 00:01:28] [%emt 00:01:47]} 60...Bf7 
{[%clk 00:08:21] [%emt 00:00:08]} 61.h5 {[%clk 00:12:27] [%emt 00:04:31]} 
61...Kxe4 {[%clk 00:22:32] [%emt 00:01:19]} 62.h6 {[%clk 00:12:50] [%emt
00:00:06]} 62...Bg8 {[%clk 00:22:55] [%emt 00:00:07]} 63.Kc6 {[%clk 00:13:01]
[%emt 00:00:19]} 63...Kf5 {[%clk 00:16:35] [%emt 00:06:50]} 64.Kxd6 {[%clk
00:12:57] [%emt 00:00:35]} 64...Kg6 {[%clk 00:16:39] [%emt 00:00:25]} 65.Kc6 
{[%clk 00:11:45] [%emt 00:01:43]} 65...Kxh6 {[%clk 00:16:39] [%emt 00:00:27]} 
66.d6 {[%clk 00:12:12] [%emt 00:00:05]} 66...Be6 {[%clk 00:17:01] [%emt
00:00:08]} 67.g8=Q {[%clk 00:12:37] [%emt 00:00:05]} 67...Bxg8 {[%clk 00:17:22]
[%emt 00:00:09]} 68.d7 {[%clk 00:13:03] [%emt 00:00:05]} 1-0

[Event "FIDE Grand Swiss 2023"]
[Site "Villa Marina, Douglas, Isle of Man"]
[Date "2023.10.25"]
[Round "1.30"]
[White "Sargissian, Gabriel"]
[Black "Bachmann, Axel"]
[Result "1-0"]
[WhiteElo "2686"]
[BlackElo "2604"]
[EventDate "2023.10.25"]
[ECO "E10"]
[PlyCount "108"]
[BlackFideId "3700488"]
[TimeControl "40/100 + 20/50 + 15 + 30s/move"]
[WhiteFideId "13300881"]

1.d4 {[%clk 01:40:51] [%emt 00:00:07]} 1...Nf6 {[%clk 01:40:52] [%emt 00:00:09]} 
2.c4 {[%clk 01:41:11] [%emt 00:00:10]} 2...e6 {[%clk 01:41:16] [%emt 00:00:06]} 
3.Nf3 {[%clk 01:41:29] [%emt 00:00:12]} 3...c5 {[%clk 01:40:18] [%emt 00:01:28]} 
4.d5 {[%clk 01:41:06] [%emt 00:00:53]} 4...b5 {[%clk 01:40:41] [%emt 00:00:07]} 
5.dxe6 {[%clk 01:38:41] [%emt 00:02:55]} 5...fxe6 {[%clk 01:41:00] [%emt
00:00:07]} 6.cxb5 {[%clk 01:37:13] [%emt 00:02:02]} 6...d5 {[%clk 01:41:23]
[%emt 00:00:07]} 7.Nc3 {[%clk 01:33:11] [%emt 00:04:32]} 7...Be7 {[%clk
01:11:21] [%emt 00:30:32]} 8.e4 {[%clk 01:19:39] [%emt 00:14:03]} 8...d4 {[%clk
01:09:07] [%emt 00:02:44]} 9.e5 {[%clk 01:11:35] [%emt 00:08:34]} 9...dxc3 
{[%clk 01:07:02] [%emt 00:02:34]} 10.exf6 {[%clk 01:10:07] [%emt 00:01:58]} 
10...Bxf6 {[%clk 01:01:30] [%emt 00:06:02]} 11.Rb1 {[%clk 01:00:44] [%emt
00:09:53]} 11...Bb7 {[%clk 00:56:18] [%emt 00:05:43]} 12.Qxd8+ {[%clk 00:48:51]} 
12...Kxd8 {[%clk 00:55:52] [%emt 00:13:19]} 13.bxc3 {[%clk 00:49:12] [%emt
00:00:09]} 13...Bxf3 {[%clk 00:52:24] [%emt 00:03:58]} 14.gxf3 {[%clk 00:49:15]
[%emt 00:00:26]} 14...Bxc3+ {[%clk 00:52:51] [%emt 00:00:04]} 15.Ke2 {[%clk
00:41:01] [%emt 00:08:44]} 15...Nd7 {[%clk 00:43:45] [%emt 00:09:36]} 16.f4 
{[%clk 00:38:54] [%emt 00:02:37]} 16...Kc7 {[%clk 00:36:31] [%emt 00:07:44]} 
17.Bg2 {[%clk 00:36:42] [%emt 00:02:42]} 17...Rad8 {[%clk 00:34:52] [%emt
00:02:08]} 18.Be3 {[%clk 00:36:03] [%emt 00:01:09]} 18...Bd4 {[%clk 00:30:51]
[%emt 00:04:31]} 19.a4 {[%clk 00:30:09] [%emt 00:06:24]} 19...Nb6 {[%clk
00:28:40] [%emt 00:02:42]} 20.a5 {[%clk 00:29:15] [%emt 00:01:24]} 20...Nc4 
{[%clk 00:26:41] [%emt 00:02:29]} 21.Rhc1 {[%clk 00:27:06] [%emt 00:02:39]} 
21...Nxa5 {[%clk 00:26:39] [%emt 00:00:32]} 22.Rxc5+ {[%clk 00:26:19] [%emt
00:01:17]} 22...Bxc5 {[%clk 00:27:02] [%emt 00:00:07]} 23.Bxc5 {[%clk 00:26:39]
[%emt 00:00:10]} 23...Nc4 {[%clk 00:22:11] [%emt 00:05:21]} 24.Rc1 {[%clk
00:21:28] [%emt 00:05:40]} 24...Nd6 {[%clk 00:12:46] [%emt 00:09:56]} 25.Bxa7+ 
{[%clk 00:21:37] [%emt 00:00:21]} 25...Kd7 {[%clk 00:13:12] [%emt 00:00:04]} 
26.Bb6 {[%clk 00:20:28] [%emt 00:01:39]} 26...Rc8 {[%clk 00:08:26] [%emt
00:05:16]} 27.Bc6+ {[%clk 00:20:49] [%emt 00:00:08]} 27...Ke7 {[%clk 00:08:53]
[%emt 00:00:04]} 28.Bc5 {[%clk 00:20:41] [%emt 00:00:38]} 28...Rhd8 {[%clk
00:09:17] [%emt 00:00:06]} 29.Rd1 {[%clk 00:19:03] [%emt 00:02:08]} 29...g5 
{[%clk 00:09:16] [%emt 00:00:31]} 30.fxg5 {[%clk 00:15:50] [%emt 00:03:43]} 
30...e5 {[%clk 00:09:38] [%emt 00:00:07]} 31.Rd3 {[%clk 00:06:43] [%emt
00:09:36]} 31...Ke6 {[%clk 00:09:59] [%emt 00:00:11]} 32.Bxd6 {[%clk 00:05:31]
[%emt 00:01:43]} 32...Rxd6 {[%clk 00:10:22] [%emt 00:00:07]} 33.Rf3 {[%clk
00:04:12] [%emt 00:01:49]} 33...Rg8 {[%clk 00:06:58] [%emt 00:03:53]} 34.h4 
{[%clk 00:03:51] [%emt 00:00:51]} 34...h6 {[%clk 00:06:49] [%emt 00:00:40]} 
35.Rf6+ {[%clk 00:03:08] [%emt 00:01:12]} 35...Ke7 {[%clk 00:07:12] [%emt
00:00:07]} 36.Rxh6 {[%clk 00:01:33] [%emt 00:02:05]} 36...Rxh6 {[%clk 00:07:37]
[%emt 00:00:06]} 37.gxh6 {[%clk 00:02:00] [%emt 00:00:02]} 37...Rh8 {[%clk
00:07:06] [%emt 00:01:00]} 38.Kf3 {[%clk 00:00:43] [%emt 00:01:48]} 38...Rxh6 
{[%clk 00:07:31] [%emt 00:00:05]} 39.Kg4 {[%clk 00:01:05] [%emt 00:00:08]} 
39...Rg6+ {[%clk 00:06:33] [%emt 00:01:28]} 40.Kh5 {[%clk 00:01:17] [%emt
00:00:19]} 40...Re6 {[%clk 00:03:03] [%emt 00:03:59]} 41.f3 {[%clk 00:44:32]
[%emt 00:07:15]} 41...Kf6 {[%clk 00:51:48] [%emt 00:01:45]} 42.Kg4 {[%clk
00:34:20] [%emt 00:10:42]} 42...Rd6 {[%clk 00:51:29] [%emt 00:00:50]} 43.Be4 
{[%clk 00:34:21] [%emt 00:00:29]} 43...Rb6 {[%clk 00:51:08] [%emt 00:00:51]} 
44.Bc6 {[%clk 00:34:42] [%emt 00:00:09]} 44...Rb8 {[%clk 00:51:35] [%emt
00:00:02]} 45.h5 {[%clk 00:32:01] [%emt 00:03:11]} 45...Rg8+ {[%clk 00:51:17]
[%emt 00:00:49]} 46.Kh4 {[%clk 00:32:01] [%emt 00:00:29]} 46...Rg1 {[%clk
00:51:40] [%emt 00:00:07]} 47.b6 {[%clk 00:31:25] [%emt 00:01:06]} 47...Rh1+ 
{[%clk 00:52:05] [%emt 00:00:05]} 48.Kg3 {[%clk 00:30:26] [%emt 00:01:28]} 
48...Rb1 {[%clk 00:52:30] [%emt 00:00:06]} 49.b7 {[%clk 00:30:04] [%emt
00:00:52]} 49...Kg5 {[%clk 00:52:56] [%emt 00:00:04]} 50.h6 {[%clk 00:23:21]
[%emt 00:07:13]} 50...Kxh6 {[%clk 00:53:20] [%emt 00:00:06]} 51.Kg4 {[%clk
00:23:46] [%emt 00:00:05]} 51...Kg7 {[%clk 00:47:28] [%emt 00:06:22]} 52.Kf5 
{[%clk 00:23:49] [%emt 00:00:27]} 52...Kf7 {[%clk 00:47:19] [%emt 00:00:39]} 
53.Kxe5 {[%clk 00:24:09] [%emt 00:00:10]} 53...Ke7 {[%clk 00:47:44] [%emt
00:00:05]} 54.Kd5 {[%clk 00:21:42] [%emt 00:02:57]} 54...Kd8 {[%clk 00:46:00]
[%emt 00:02:14]} 1-0

[Event "FIDE Grand Swiss 2023"]
[Site "Villa Marina, Douglas, Isle of Man"]
[Date "2023.10.25"]
[Round "1.31"]
[White "Petrosyan, Manuel"]
[Black "Tabatabaei, M. Amin"]
[Result "0-1"]
[WhiteElo "2604"]
[BlackElo "2685"]
[EventDate "2023.10.25"]
[ECO "B51"]
[PlyCount "106"]
[BlackFideId "12521213"]
[TimeControl "40/100 + 20/50 + 15 + 30s/move"]
[WhiteFideId "13300857"]

1.e4 {[%clk 01:39:02] [%emt 00:01:58]} 1...c5 {[%clk 01:39:40] [%emt 00:01:20]} 
2.Nf3 {[%clk 01:39:20] [%emt 00:00:12]} 2...d6 {[%clk 01:40:00] [%emt 00:00:11]} 
3.Bb5+ {[%clk 01:38:59] [%emt 00:00:51]} 3...Nd7 {[%clk 01:39:57] [%emt
00:00:32]} 4.c3 {[%clk 01:38:13] [%emt 00:01:16]} 4...Nf6 {[%clk 01:38:07] [%emt
00:02:19]} 5.Bd3 {[%clk 01:37:14] [%emt 00:01:30]} 5...Qc7 {[%clk 01:09:21]
[%emt 00:29:16]} 6.O-O {[%clk 01:24:32] [%emt 00:13:12]} 6...b6 {[%clk 01:02:47]
[%emt 00:07:05]} 7.Re1 {[%clk 01:14:37] [%emt 00:10:24]} 7...Bb7 {[%clk
01:01:53] [%emt 00:01:24]} 8.Bc2 {[%clk 01:11:27] [%emt 00:03:40]} 8...Rc8 
{[%clk 01:01:43] [%emt 00:00:41]} 9.d4 {[%clk 00:52:59] [%emt 00:18:58]} 
9...cxd4 {[%clk 01:01:25] [%emt 00:00:48]} 10.Nxd4 {[%clk 00:53:24] [%emt
00:00:04]} 10...g6 {[%clk 00:52:30] [%emt 00:09:26]} 11.b3 {[%clk 00:52:16]
[%emt 00:01:37]} 11...Nc5 {[%clk 00:49:11] [%emt 00:03:49]} 12.c4 {[%clk
00:45:12] [%emt 00:07:34]} 12...Bg7 {[%clk 00:42:02] [%emt 00:07:39]} 13.Nc3 
{[%clk 00:44:21] [%emt 00:01:21]} 13...O-O {[%clk 00:42:26] [%emt 00:00:06]} 
14.Bg5 {[%clk 00:30:53] [%emt 00:13:58]} 14...a6 {[%clk 00:40:31] [%emt
00:02:26]} 15.Nd5 {[%clk 00:19:35] [%emt 00:11:49]} 15...Nxd5 {[%clk 00:40:32]
[%emt 00:00:28]} 16.exd5 {[%clk 00:20:00] [%emt 00:00:04]} 16...e5 {[%clk
00:39:39] [%emt 00:01:24]} 17.dxe6 {[%clk 00:20:26] [%emt 00:00:04]} 17...Nxe6 
{[%clk 00:39:14] [%emt 00:00:55]} 18.Nxe6 {[%clk 00:19:59] [%emt 00:00:57]} 
18...fxe6 {[%clk 00:39:36] [%emt 00:00:08]} 19.Rc1 {[%clk 00:19:38] [%emt
00:00:51]} 19...Bb2 {[%clk 00:27:43] [%emt 00:12:22]} 20.Rb1 {[%clk 00:17:35]
[%emt 00:02:34]} 20...Be5 {[%clk 00:27:58] [%emt 00:00:15]} 21.Qg4 {[%clk
00:13:00] [%emt 00:05:04]} 21...Qf7 {[%clk 00:25:51] [%emt 00:02:38]} 22.Re2 
{[%clk 00:11:56] [%emt 00:01:34]} 22...b5 {[%clk 00:25:37] [%emt 00:00:44]} 
23.Bh6 {[%clk 00:10:24] [%emt 00:02:02]} 23...Rfe8 {[%clk 00:23:34] [%emt
00:02:33]} 24.Bd3 {[%clk 00:10:27] [%emt 00:00:26]} 24...bxc4 {[%clk 00:22:42]
[%emt 00:01:23]} 25.Bxc4 {[%clk 00:08:11] [%emt 00:02:47]} 25...Qf5 {[%clk
00:20:44] [%emt 00:02:28]} 26.Qxf5 {[%clk 00:07:48] [%emt 00:00:53]} 26...gxf5 
{[%clk 00:21:12]} 27.Bd2 {[%clk 00:02:08] [%emt 00:06:10]} 27...Kf7 {[%clk
00:19:48] [%emt 00:01:53]} 28.f3 {[%clk 00:00:51] [%emt 00:01:48]} 28...Kf6 
{[%clk 00:18:29] [%emt 00:01:49]} 29.Rd1 {[%clk 00:00:35] [%emt 00:00:46]} 
29...d5 {[%clk 00:16:14] [%emt 00:02:45]} 30.Be1 {[%clk 00:00:33] [%emt
00:00:32]} 30...Bb8 {[%clk 00:13:49] [%emt 00:02:55]} 31.Bh4+ {[%clk 00:01:02]
[%emt 00:00:01]} 31...Kg6 {[%clk 00:14:10] [%emt 00:00:09]} 32.Bd3 {[%clk
00:01:18] [%emt 00:00:14]} 32...e5 {[%clk 00:14:36] [%emt 00:00:03]} 33.g4 
{[%clk 00:00:45] [%emt 00:01:04]} 33...e4 {[%clk 00:15:04] [%emt 00:00:02]} 
34.Bb1 {[%clk 00:00:48] [%emt 00:00:27]} 34...d4 {[%clk 00:12:16] [%emt
00:03:18]} 35.Rde1 {[%clk 00:00:32] [%emt 00:00:46]} 35...Ba7 {[%clk 00:09:55]
[%emt 00:02:51]} 36.Kf1 {[%clk 00:00:33] [%emt 00:00:29]} 36...e3 {[%clk
00:07:38] [%emt 00:02:47]} 37.Bxf5+ {[%clk 00:00:52] [%emt 00:00:11]} 37...Kg7 
{[%clk 00:08:01] [%emt 00:00:07]} 38.Kg2 {[%clk 00:00:54] [%emt 00:00:28]} 
38...Rf8 {[%clk 00:05:29] [%emt 00:03:02]} 39.Rd1 {[%clk 00:01:18] [%emt
00:00:06]} 39...Rc5 {[%clk 00:05:53] [%emt 00:00:07]} 40.Kg3 {[%clk 00:00:35]
[%emt 00:01:13]} 40...Rcxf5 {[%clk 00:05:12] [%emt 00:01:10]} 41.gxf5 {[%clk
00:00:51] [%emt 00:00:14]} 41...Rxf5 {[%clk 00:05:39] [%emt 00:00:04]} 42.Rc2 
{[%clk 00:45:41] [%emt 00:05:40]} 42...Bb8+ {[%clk 00:27:21] [%emt 00:28:47]} 
43.Kh3 {[%clk 00:37:43] [%emt 00:08:28]} 43...Rxf3+ {[%clk 00:27:38] [%emt
00:00:13]} 44.Bg3 {[%clk 00:38:08] [%emt 00:00:04]} 44...Be4 {[%clk 00:27:25]
[%emt 00:00:44]} 45.Rc4 {[%clk 00:32:41] [%emt 00:05:57]} 45...Bxg3 {[%clk
00:24:03] [%emt 00:03:51]} 46.hxg3 {[%clk 00:33:06] [%emt 00:00:04]} 46...Bf5+ 
{[%clk 00:24:11] [%emt 00:00:23]} 47.Kg2 {[%clk 00:32:47] [%emt 00:00:49]} 
47...Rf2+ {[%clk 00:24:31] [%emt 00:00:11]} 48.Kg1 {[%clk 00:33:13] [%emt
00:00:03]} 48...d3 {[%clk 00:24:57] [%emt 00:00:05]} 49.g4 {[%clk 00:28:08]
[%emt 00:05:35]} 49...Bg6 {[%clk 00:25:11] [%emt 00:00:16]} 50.Rc7+ {[%clk
00:28:15] [%emt 00:00:23]} 50...Kh6 {[%clk 00:22:38] [%emt 00:03:03]} 51.Re7 
{[%clk 00:25:44] [%emt 00:03:01]} 51...e2 {[%clk 00:22:04] [%emt 00:01:04]} 
52.Re1 {[%clk 00:25:33] [%emt 00:00:40]} 52...Rf4 {[%clk 00:20:04] [%emt
00:02:24]} 53.Kg2 {[%clk 00:23:37] [%emt 00:02:32]} 53...Be4+ {[%clk 00:20:05]
[%emt 00:00:30]} 0-1